Cogmind - Beta 16 @@@ ROGUE MODE // 2025.11.20 @ 21:42:09 Player: NitroKuite Result: Destroyed by as-58361 with Assembled Heavy Rifle Performance ------------- Evolutions (0) 0 Regions Visited (2) 400 Robots Destroyed (4) 20 Value Destroyed (90) 90 Prototype IDs (0) 0 Alien Tech Used (0) 0 Bonus (0) 0 TOTAL SCORE: 510 Bonus ------- None Cogmind --------- Core Integrity 0/250 Matter 265/300 Energy 100/100 System Corruption 0% Temperature Cool (94) Movement Core (350) Ox6 Location -10/Mines Parts ------- > --- POWER (1) -------- (None) > --- PROPULSION (2) --- (None) > --- UTILITY (2) ------ Large Storage Unit > --- WEAPON (2) ------- (None) > --- INVENTORY (15) --- Ion Engine Aluminum Leg Aluminum Leg Heavy Armor Plating Hardened Medium Armor Plating Peak State ------------ > --- POWER ------------ Light Nuclear Core > --- PROPULSION ------- Compact Wheel Compact Wheel > --- UTILITY ---------- Heat Sink Large Storage Unit > --- WEAPON ----------- Medium Laser Small Laser > --- INVENTORY -------- Ion Engine Aluminum Leg Aluminum Leg Heavy Armor Plating Hardened Medium Armor Plating [Rating: 10] Favorites ----------- Power Ion Engine Engine Ion Engine Power Core Light Nuclear Core Propulsion Compact Wheel Leg Aluminum Leg Wheel Compact Wheel Utility Large Storage Unit Device Heat Sink Storage Large Storage Unit Weapon Small Laser Energy Gun Small Laser Build | -11 -10 -10 ------- Run | Yrd Mat Min Slots Evolved . | . . . Power . | . . . Propulsion . | . . . Utility . | . . . Weapon . | . . . Parts Attached 10 | 5 2 3 Power 2 | 1 . 1 Engine 1 | 1 . . Core 1 | . . 1 Reactor . | . . . Propulsion 4 | 2 . 2 Treads . | . . . Leg 2 | . . 2 Wheel 2 | 2 . . Hover . | . . . Flight . | . . . Utility 2 | . 2 . Device 1 | . 1 . Storage 1 | . 1 . Processor . | . . . Hackware . | . . . Protection . | . . . Artifact . | . . . Weapon 2 | 2 . . Energy Gun 2 | 2 . . Energy Cannon . | . . . Ballistic Gun . | . . . Ballistic Cannon . | . . . Launcher . | . . . Special Weapon . | . . . Impact Weapon . | . . . Slashing Weapon . | . . . Piercing Weapon . | . . . Special Melee Weapon . | . . . Unidentified Prototypes . | . . . Parts Lost 6 | . . 6 Power 1 | . . 1 Propulsion 2 | . . 2 Utility 1 | . . 1 Weapon 2 | . . 2 Highest Loss Streak 6 | . . 6 To Critical Strikes . | . . . Average Backups 1 | . . 3 Power . | . . . Propulsion . | . . 1 Utility . | . . 1 Weapon . | . . . Tool/Special . | . . . Unused Backups 3 | . 1 2 Power . | . . . Propulsion 1 | . 1 . Utility 2 | . . 2 Weapon . | . . . Tool/Special . | . . . Average Slot Usage (%) 91 | . 84 97 Engine 10 | . 14 6 Core 3 | . . 7 Wheel 27 | . 28 26 Device 9 | . 4 14 Storage 11 | . 8 14 Energy Gun 27 | . 28 27 Peak Build Rating 10 | 5 7 10 Average Rating 6 | 2 5 8 On Entrance 4 | . 5 7 Avg Prop Armor Cover (%) . | . . . Naked Turns . | . . . Heaviest Build 29 | 8 29 29 Greatest Support 32 | 32 32 32 Greatest Overweight (x) 2 | . . 2 Average Overweight (x) . | . . . Largest Inventory Capacity 15 | 5 15 15 Average Capacity 11 | 5 11 15 Most Carried 8 | 2 1 8 Average Carried 2 | . . 4 Final Capacity 15 | 5 15 15 Final Carried 6 | 1 . 6 Class Distribution -------------------- 100% | Mutant Dominant Class ---------------- Mutant | -10/Materials Mutant | -10/Mines Resources | -11 -10 -10 ----------- Run | Yrd Mat Min Matter Collected 250 | 220 . 30 Remotely . | . . . Salvage Created 277 | 99 26 152 Parts 7 | 4 1 2 Haulers Intercepted . | . . . Recyclers Shooed . | . . . Parts Field Recycled . | . . . Retrieved Matter . | . . . Parts Self-Destructed . | . . . Prevented . | . . . Parts Restored . | . . . Kills | -11 -10 -10 ------- Run | Yrd Mat Min Combat Hostiles Destroyed 5 | . . 5 Guns 5 | . . 5 Classes Destroyed 4 | 1 1 2 Recycler 1 | 1 . . Watcher 1 | . 1 . Grunt 2 | . . 2 Assembled 3 | . . 3 Best Kill Streak 3 | 1 1 3 Combat Bots Only 3 | . . 3 Max Kills in Single Turn 2 | 1 1 2 Gunslinging 1 | . . 1 Exploded . | . . . Melee . | . . . Uniques/NPCs Destroyed . | . . . Combat | -11 -10 -10 -------- Run | Yrd Mat Min Hostile Shots Fired 50 | . . 50 Missed 6 | . . 6 Hits 44 | . . 44 Melee 4 | . . 4 Projectile 40 | . . 40 Damage Taken 610 | 15 . 595 Core 250 | 10 . 240 Absorbed by Shields . | . . . Core Remaining (%) 96 | 96 . . Volleys Fired 21 | 1 2 18 Largest 2 | 2 2 2 Hottest 90 | 90 90 90 Shots Fired 38 | 2 4 32 Gun 38 | 2 4 32 Cannon . | . . . Launcher . | . . . Special . | . . . Kinetic . | . . . Thermal 38 | 2 4 32 Explosive . | . . . Electromagnetic . | . . . Robot Hit Streak 5 | 2 3 5 Robot Miss Streak 2 | . 1 2 Penetration Max . | . . . Secondary Targets 1 | . . 1 Max Gunslinging Chain 1 | . . 1 Shots Hit Robots 24 | 2 2 20 Core Hits 16 | 3 1 12 Critical Kills . | . . . Critical Parts Destroyed . | . . . Critical Strikes 1 | . . 1 Burn 1 | . . 1 Melee Attacks . | . . . Impact . | . . . Slashing . | . . . Piercing . | . . . Sneak Attacks . | . . . Combat Hostiles . | . . . Follow-up Attacks . | . . . Damage Inflicted 373 | 56 37 280 Guns 337 | 24 37 276 Cannons . | . . . Explosions . | . . . Melee . | . . . Ramming 36 | 32 . 4 Kinetic . | . . . Thermal 337 | 24 37 276 Explosive . | . . . Electromagnetic . | . . . Impact . | . . . Slashing . | . . . Piercing . | . . . Highest Corruption . | . . . Average Corruption . | . . . Corruption Purged . | . . . Corruption Blocked . | . . . Overload Shots . | . . . Overflow Damage . | . . . Projectiles . | . . . Explosions . | . . . Melee . | . . . Knockbacks . | . . . Impact . | . . . Kinetic . | . . . Secondary . | . . . Self-Inflicted Damage 16 | 15 . 1 Shots . | . . . Rammed 13 | 9 . 4 Targets Rammed 13 | 9 . 4 Kicked . | . . . Crushed . | . . . Highest Temperature 142 | 30 30 142 Average Temperature 57 | 17 17 66 Received Heat Transfer 400 | . . 400 Siege Activations . | . . . Martial Activations . | . . . Shielding Activations . | . . . Robots Disrupted . | . . . Combat Hostiles . | . . . Robots Corrupted . | . . . Combat Hostiles . | . . . Parts Fried . | . . . Impact Corruptions . | . . . Robots Melted . | . . . Combat Hostiles . | . . . Parts Melted . | . . . Heat Transferred 955 | 62 99 794 Parts Sabotaged . | . . . Parts Stolen . | . . . Parts Stripped . | . . . Power Chain Reactions . | . . . Alert | -11 -10 -10 ------- Run | Yrd Mat Min Maximum Alert Level . | . . . Low Security (%) 100 | 100 100 100 Level 1 . | . . . Level 2 . | . . . Level 3 . | . . . Level 4 . | . . . Level 5 . | . . . High Security . | . . . Max Security . | . . . Peak Influence 50 | 5 7 50 Initial . | . . . Average 5 | . . 12 Influence Increases 62 | 5 7 50 Destroy 0b10 Robot/C 40 | . . 40 Destroy 0b10 Robot/NC 10 | 5 5 . Destroy Leader 12 | . 2 10 Influence Decreases 62 | 5 7 50 Time Decay 62 | 5 7 50 Squads Dispatched 1 | . . 1 Investigation 1 | . . 1 Extermination . | . . . Reinforcement . | . . . Assault . | . . . Garrison . | . . . Intercept . | . . . Searches Triggered . | . . . Construction Impeded . | . . . Haulers Reinforced . | . . . Active Scanning Responses . | . . . Cargo Convoy Interrupts . | . . . Stealth | -11 -10 -10 --------- Run | Yrd Mat Min Distress Signals . | . . . Communications Jammed . | . . . Distress Signals . | . . . Times Spotted 21 | . 2 19 Peak Tracking Total 20 | . 1 20 Tactical Retreats 1 | . . 1 Traps | -11 -10 -10 ------- Run | Yrd Mat Min Traps Triggered . | . . . Indirectly . | . . . Trap Hack Attempts . | . . . Triggered . | . . . Disarmed . | . . . Reprogrammed . | . . . Reused . | . . . Traps Extracted . | . . . Installed . | . . . Triggered . | . . . Machines | -11 -10 -10 ---------- Run | Yrd Mat Min Machines Disabled . | . . . Max in Single Turn . | . . . Machines Repaired . | . . . Machines Dismantled . | . . . Machines Sabotaged . | . . . Overloaded Fab Kills . | . . . Hacking | -11 -10 -10 --------- Run | Yrd Mat Min Machines Accessed 2 | . 1 1 Terminals 1 | . 1 . Fabricators . | . . . Repair Stations . | . . . Recycling Units . | . . . Scanalyzers . | . . . Garrison Access . | . . . Total Hacks 3 | . 2 1 Successful 3 | . 2 1 Failed . | . . . Catastrophic . | . . . Database Lockouts . | . . . Manual . | . . . Terminals 2 | . 2 . Fabricators . | . . . Repair Stations . | . . . Recycling Units . | . . . Scanalyzers . | . . . Garrison Access . | . . . Terminal Hacks 3 | . 2 1 Record 2 | . 2 . Open Door 1 | . . 1 Fabricator Hacks . | . . . Repair Station Hacks . | . . . Recycling Unit Hacks . | . . . Scanalyzer . | . . . Garrison Access Hacks . | . . . Unauthorized Hacks . | . . . Terminals . | . . . Fabricators . | . . . Repair Stations . | . . . Recycling Units . | . . . Scanalyzers . | . . . Garrison Access . | . . . Data Cores Recovered . | . . . Used . | . . . Hacking Detections 1 | . 1 . Full Trace Events . | . . . Feedback Events . | . . . Feedback Blocked . | . . . Robot Schematics Acquired . | . . . Robots Built . | . . . Authchips . | . . . Time . | . . . Total Robot Build Rating . | . . . Part Schematics Acquired . | . . . Parts Built . | . . . Authchips . | . . . Time . | . . . Total Part Build Rating . | . . . Part Studies Acquired . | . . . Parts Repaired . | . . . Time . | . . . Parts Recycled . | . . . Recycled Matter . | . . . Retrieved Matter . | . . . Retrieved Components . | . . . Parts Scanalyzed . | . . . Part Schematics Acquired . | . . . Parts Damaged . | . . . Bothacking | -11 -10 -10 ------------ Run | Yrd Mat Min Used RIF Installer . | . . . Robots Hacked . | . . . Non-combat . | . . . Combat . | . . . Robot Hacks Applied . | . . . Relay Couplers Released . | . . . Fabnet Peak Effective % . | . . . Robots Rewired . | . . . Allies Hacked . | . . . Hacks Repelled . | . . . Allies | -11 -10 -10 -------- Run | Yrd Mat Min Total Allies . | . . . Largest Group . | . . . Highest-Rated Group . | . . . Highest-Rated Ally . | . . . Total Orders . | . . . Ally Attacks . | . . . Total Damage . | . . . Kills . | . . . Allies Corrupted . | . . . Allies Melted . | . . . Intel | -11 -10 -10 ------- Run | Yrd Mat Min Active Infowar (turns) . | . . . Robot Analysis Total . | . . . Derelict Logs Recovered 1 | . . 1 Drone Launches . | . . . Drone Recoveries . | . . . Exploration | -11 -10 -10 ------------- Run | Yrd Mat Min Turns Passed 477 | 75 198 204 Spaces Moved 363 | 69 171 123 Core 33 | 33 . . Treads . | . . . Legs 1 | . . 1 Wheels 329 | 36 171 122 Hover . | . . . Flight . | . . . Fastest Speed 50 | 50 100 100 Average Speed 95 | 76 100 101 Slowest Speed 260 | 100 100 260 Overloaded Moves . | . . . Propulsion Burnouts . | . . . Robots Hopped . | . . . Potential Cave-ins . | . . . Cave-ins Triggered . | . . . Exploration Rate (%) 21 | 4 26 34 Regions Visited 2 Branch Regions 1 Pre-discovered Areas . | . . . Known Exits Taken . | . . . Unknown Exits Taken 2 | 1 1 . Scrap Searched . | . . . Spaces Dug . | . . . Terrain Destroyed . | . . . Melee . | . . . Projectile . | . . . AOE . | . . . Terrain Rammed . | . . . Walls Destroyed . | . . . Machines Disabled . | . . . Actions | -11 -10 -10 --------- Run | Yrd Mat Min Total 453 | 89 194 170 Wait 20 | . 17 3 Move 361 | 68 170 123 Hop . | . . . Pick Up 13 | 6 2 5 Fast Attach . | . . . Attach 15 | 5 2 8 Detach 8 | . . 8 Swap 1 | . . 1 Drop 1 | . 1 . Fire 21 | 1 2 18 Melee . | . . . Ram 13 | 9 . 4 Kick . | . . . Crush . | . . . Escape Stasis . | . . . Rewire . | . . . Trap . | . . . Miscellaneous . | . . . Route ------- -11/Scrapyard -10/Materials -10/Mines History --------- Turn | Location | Event 13 | -11/Scrapyard | Discovered new exit (range 15) 76 | -11/Scrapyard | Entered Materials 77 | -10/Materials | Met a group of wandering Federalists 221 | -10/Materials | Discovered new exit (range 12) 274 | -10/Materials | Entered Mines 277 | -10/Mines | Met a Derelict shopkeep closing up shop 309 | -10/Mines | Build established: Mutant 431 | -10/Mines | Assembled infested the area 470 | -10/Mines | Core integrity fell below 50% 478 | -10/Mines | Core integrity fell below 20% 478 | -10/Mines | Destroyed by as-58361 with Assembled Heavy Rifle Last Messages --------------- Acquired Aluminum Leg. K-01 Serf collects debris. ALERT: Infestation in the mines, dispatching Demolisher response squad. [Achievement: Hunted] as-79543 suffers critical hit (Burn). as-53750 destroyed. Switching to secondary target: as-79543. as-79543 destroyed. Com. Wheel destroyed. Med. Laser destroyed. Slammed into as-78882. Slammed into as-58996. as-78882 destroyed. Com. Wheel destroyed. Sml. Laser destroyed. Slammed into as-66114. Lgt. Nuclear Core destroyed. Heat Sink destroyed. Slammed into as-66114. Map ----- +----------------------------------------------------+ | ???????????? #?????????????? | | ???????????? ?????????????? | | ??????????## ?????######???? | | ??????????# ????##""""##??? | | ?????????? ????#" = ="#??? | | ??????????# #????#" /"#??? | | ??????????# #????## ##??? | | ??????????# #????### ###??? | | ??????????# #????# X #??? | | ???????#### #????# ##?? | | ???????# ###### #?? | | ???????# ## #?? | | ??????## ########## #?? | | ?????## ##??????# #?? | | ???## #??????# #?? | | #?## #??????# #?? | | ## ##??????#########?? | | ##??????????## ##? | | #???????????# #? | | """ #??????????## #? | | """ ##????????### #? | | """ #????????## #? | | ##??####?## #? | | ## ##?### ### #? | | ?### #?## # a#? | | #### ### ##@ #? | | % ## ## ####% #? | | % # #### ###??#aa#? | | ###### ##??## ##????#aa#? | | ???## ##????# #??####a%#? | | ??## ##????# #??# aa #? | | ### ##?????# #??# a #? | | # #?????? ##??# ####? | | #????? #???# #???? | | #????? ???# #???? | | ##?????# ???# #???? | | ##??????### ???# #???? | | ##?????????## #??# #???? | | ##????????????###??# #???? | | ##?????????????????? #???? | | ##??????????????????? #???? | | ????????????????????? ????? | | ???????????????????? ????? | | ???????????????????? ????? | | ???????????????????? #????? | | ???????????????????? #?????? | | ???????????????????? "??????? | | ????????????????????? ??????? | | ????????????????????????????? | | ????????????????????????????? | +----------------------------------------------------+ Best States ------------- Heat Dissipation 35 Energy Generation 14 Energy Capacity 250 Matter Stores 300 Matter Capacity 300 Sight Range 16 Terrain Scan Density 10 Evasion (%) 50 Item Schematics ----------------- None Robot Schematics ------------------ None Fabricated ------------ Nothing Repaired ---------- Nothing Studied --------- None Alien Tech Used ----------------- None Achievements -------------- DATA ERROR: Steam Global Achievement% For Emergencies Only Hunted Organ Harvest Challenges ------------ None Game ------ Seed BehemothDisruptorSabre Manual? 0 Play Time 00:23:53 Cumulative 6.1 hours Start 2025.11.20 @ 21:15:24 End 2025.11.20 @ 21:42:09 Sessions 1 Manual Loads 0 Difficulty Rogue Special Mode None Game No. 14 Rogue 14 Adventurer 0 Explorer 0 Win Type - Total 0 Types 0/0/0/0/0/0/0/0/0/0 Lore% 4 Gallery% 10 Achievement% 7 Wizard Run 0 Options --------- Layout 1 ASCII 0 Keyboard 1 Movement Numpad Keybinds 0 Fullscreen 1 Font 32/Tamsyn Map View 50x35 Zoom Use 1% Tactical HUD 0 Map Filters NONE Filters NONE Steam 1 RUN: c78c371a-0818-4e8c-b57b-0c07f7cc63d9